Workbook

Sheet Solutions à doser
A1: Absorbance d'une solution
A5: 1- Solution à doser | B5: Solution 1
B6: =HLOOKUP($B$5,L$42:V$139,10) -> 158.0249
H7: l / nm | I7: 525 | L7: Absorbance | M7: =INT(1000*(VLOOKUP(I7,A52:D139,4)+(RAND()-0.5)*$G$31))/1000 -> 2
L8: ="mesurée à "&I7&"nm" -> mesurée à 525nm
A9: 2- Dilution de la solution à doser | E9: 3- Spectre de la solution fille
A10: V pipette / mL | B10: 25
A11: V fiole / mL | B11: 25
F31: bruit | G31: 0.01 | H31: Ip | I31: 0.01 | K31: e / L.mol‑1.cm-1 | L31: =LOOKUP(I7,A52:A139,B52:B139) -> 2.001571671
Y36: KMnO4 | Z36: Bleu patenté | AA36: Bleu patenté | AB36: Bleu patenté | AC36: Cu2+ | AD36: Cu2+ | AE36: Ni2+ | AF36: Cu2+
Y37: 0.0283 | Z37: 3.72e-05 | AA37: 7.2e-05 | AB37: 0.000147 | AC37: 0.486 | AD37: 0.413 | AE37: 0.486 | AF37: 0.7323
Z38: Jaune de quinoléïne | AA38: Curcumine | AB38: Jaune de quinoléïne | AC38: Co2+ | AD38: Ni2+ | AE38: Co2+ | AG38: Ni2+
Z39: 0.000128 | AA39: 0.000875 | AB39: 0.000785 | AC39: 0.327 | AD39: 0.923 | AE39: 0.358 | AG39: 1.555
A41: Solution étudiée
L42: Bleu patenté | M42: Jaune de quinoléïne | N42: Nitrate de cobalt | O42: Nitrate de cuivre trihydraté | P42: Nitrate de nickel hexahydraté | Q42: Permanganate de potassium | R42: Tartrazine | Y42: Solution 1 | Z42: Solution 2 | AA42: Solution 3 | AB42: Solution 4 | AC42: Solution 5 | AD42: Solution 6 | AE42: Solution 7 | AF42: Solution 8 | AG42: Solution 9
A43: H | B43: 1 | K43: H | L43: 0.62 | M43: =37/255 -> 0.1450980392 | N43: =242/255 -> 0.9490196078 | O43: 0.62 | P43: =125/255 -> 0.4901960784 | Q43: 0.7921568627 | R43: =40/255 -> 0.1568627451 | Y43: 0.7921568627 | Z43: =108/255 -> 0.4235294118 | AA43: =108/255 -> 0.4235294118 | AB43: =108/255 -> 0.4235294118
A44: S | B44: 1 | K44: S | L44: 1 | M44: 1 | N44: =159/255 -> 0.6235294118 | O44: 1 | P44: =197/255 -> 0.7725490196 | Q44: 0.6509803922 | R44: 1 | Y44: 0.6509803922 | Z44: =252/255 -> 0.9882352941 | AA44: =252/255 -> 0.9882352941 | AB44: =252/255 -> 0.9882352941
A45: L | B45: 1 | K45: L | L45: =1-L47 -> 1 | M45: =1-M47 -> 1 | N45: =1-N47 -> 1 | O45: 1 | P45: 1 | Q45: 1 | R45: 1 | Y45: =1-G47 -> 1 | Z45: =1-Z47 -> 1 | AA45: =1-AA47 -> 1 | AB45: =1-AB47 -> 
A46: Concentration à 0,5 de Luminosité | B46: 1 | K46: Concentration à 0,5 de Luminosité | L46: 1e-05 | M46: 6e-05 | N46: 0.3 | O46: 0.6 | P46: 0.3 | Q46: 0.0007 | R46: 6e-05 | Y46: 1e-07 | Z46: 0.0007 | AA46: 0.0007 | AB46: 0.0007
B47: 1 | L47: =1-EXP(-(LN(2)/L46*$E$15)) -> 0 | M47: 0 | N47: 0 | O47: 0 | P47: 0 | Q47: 0 | R47: 0 | Y47: =1-EXP(-(LN(2)/Y46*$U$31)) -> 0 | Z47: =1-EXP(-(LN(2)/Z46*$U$31*B10/B11)) -> 0 | AA47: =1-EXP(-(LN(2)/AA46*$U$31*B10/B11)) -> 0 | AB47: =1-EXP(-(LN(2)/AB46*$U$31*C10/C11)) -> 
L48: 84 | M48: 220 | N48: 1330 | O48: 1380 | P48: 940 | Q48: 64 | R48: 38
B50: =(RAND()-0.5)*$G$31 -> -0.002749702462
A51: l / nm | B51: Absorbance | C51: Abs théo | D51: Signal vrai | G51: coeff | H51: 1.4 | L51: 582.667306 | M51: 477.375 | N51: 182.943 | O51: 241.6 | P51: 182.703 | Q51: =39.0893+54.938+15.9994*4 -> 158.0249 | R51: 534.363
A52: 400 | B52: =D52+$B$50 -> 0.5518712804 | C52: =$B$10/$B$11*HLOOKUP($B$5,Y$42:AR$139,ROW()-42+1) -> 0.566 | D52: =-LOG(($I$31+10^(-C52))/($I$31+1)) -> 0.5546209828 | K52: 400 | L52: 10501.56191 | M52: 22436.625 | N52: 0.009 | O52: 0 | P52: 4.526 | Q52: 20 | R52: 20156.28311 | Y52: =Q52*$Y$37 -> 0.566 | Z52: =L52*$Z$37+M52*$Z$39 -> 3.262546103 | AA52: =L52*$AA$37+M52*$AA$39 -> 20.38815933 | AB52: =L52*$AB$37+R52*$AB$39 -> 17.36641184 | AC52: =O52*$AC$37+N52*$AC$39 -> 0.002943 | AD52: =O52*$AD$37+P52*$AD$39 -> 4.177498 | AE52: =P52*$AE$37+N52*$AE$39 -> 2.202858 | AF52: =O52*AF$37 -> 0 | AG52: =P52*AG$39 -> 7.03793
A53: =A52+5 -> 405 | B53: =D53+$B$50 -> 0.6063301046 | C53: =$B$10/$B$11*HLOOKUP($B$5,Y$42:AR$139,ROW()-42+1) -> 0.6226 | D53: =-LOG(($I$31+10^(-C53))/($I$31+1)) -> 0.6090798071 | G53: =I7 -> 525 | H53: =M7+0.08*H51 -> 2.112 | K53: =K52+5 -> 405 | L53: 11788.85014 | M53: 24584.8125 | N53: 0.018 | O53: 0 | P53: 3.994 | Q53: 22 | R53: 21097.64798 | Y53: =Q53*$Y$37 -> 0.6226 | Z53: =L53*$Z$37+M53*$Z$39 -> 3.585401225 | AA53: =L53*$AA$37+M53*$AA$39 -> 22.36050815 | AB53: =L53*$AB$37+R53*$AB$39 -> 18.29461463 | AC53: =O53*$AC$37+N53*$AC$39 -> 0.005886 | AD53: =O53*$AD$37+P53*$AD$39 -> 3.686462 | AE53: =P53*$AE$37+N53*$AE$39 -> 1.947528 | AF53: =O53*AF$37 -> 0 | AG53: =P53*AG$39 -> 6.21067
A54: 410 | B54: 0.6605036711 | C54: 0.6792 | D54: 0.6632533736 | G54: =G53 -> 525 | H54: =M7-0.08*H51 -> 1.888 | K54: 410 | L54: 12263.11423 | M54: 25406.95833 | N54: 0.036 | O54: 0 | P54: 3.429 | Q54: 24 | R54: 21872.88964 | Y54: 0.6792 | Z54: =L54*$Z$37+M54*$Z$39 -> 3.708278516 | AA54: 23.11403277 | AB54: 18.97289616 | AC54: 0.011772 | AD54: 3.164967 | AE54: 1.679382 | AF54: 0 | AG54: 5.332095
A55: 415 | B55: 0.7678466694 | C55: 0.7924 | D55: 0.7705963719 | K55: 415 | L55: 10772.56996 | M55: 24796.97917 | N55: 0.069 | O55: 0 | P55: 2.863 | Q55: 28 | R55: 22482.00808 | Y55: 0.7924 | Z55: 3.574752936 | AA55: 22.47298181 | AB55: 19.23194413 | AC55: 0.022563 | AD55: 2.642549 | AE55: 1.41612 | AF55: 0 | AG55: 4.451965
A56: 420 | B56: 0.8209315507 | C56: 0.849 | D56: 0.8236812532 | G56: =I7-10 -> 515 | H56: =M7 -> 2 | K56: 420 | L56: 8130.241479 | M56: 23497.45833 | N56: 0.128 | O56: 0 | P56: 2.326 | Q56: 30 | R56: 22869.62891 | Y56: 0.849 | Z56: 3.31011965 | AA56: 21.14565343 | AB56: 19.14780419 | AC56: 0.041856 | AD56: 2.146898 | AE56: 1.17626 | AF56: 0 | AG56: 3.61693
A57: 425 | B57: 1.028157211 | C57: 1.0754 | D57: 1.030906913 | G57: =I7+10 -> 535 | H57: =M7 -> 2 | K57: 425 | L57: 5352.408974 | M57: 22569.22917 | N57: 0.227 | O57: 0 | P57: 1.839 | Q57: 38 | R57: 23035.75212 | Y57: 1.0754 | Z57: 3.087970947 | AA57: 20.13344897 | AB57: 18.86986954 | AC57: 0.074229 | AD57: 1.697397 | AE57: 0.97502 | AF57: 0 | AG57: 2.859645
A58: 430 | B58: 1.403496496 | C58: 1.5282 | D58: 1.406246199 | K58: 430 | L58: 3319.848604 | M58: 21614.47917 | N58: 0.381 | O58: 0 | P58: 1.418 | Q58: 54 | R58: 22869.62891 | Y58: 1.5282 | Z58: 2.890151701 | AA58: 19.15169837 | AB58: 18.44067644 | AC58: 0.124587 | AD58: 1.308814 | AE58: 0.825546 | AF58: 0 | AG58: 2.20499
A59: 435 | B59: 1.769429013 | C59: 2.1508 | D59: 1.772178715 | K59: 435 | L59: 2032.56037 | M59: 19545.85417 | N59: 0.604 | O59: 0 | P59: 1.07 | Q59: 76 | R59: 22426.63368 | Y59: 2.1508 | Z59: 2.577480579 | AA59: 17.24896674 | AB59: 17.90369381 | AC59: 0.197508 | AD59: 0.98761 | AE59: 0.736252 | AF59: 0 | AG59: 1.66385
A60: 440 | B60: 1.948555703 | C60: 2.8866 | D60: 1.951305405 | K60: 440 | L60: 1355.040247 | M60: 15753.375 | N60: 0.904 | O60: 0 | P60: 0.797 | Q60: 102 | R60: 21706.76642 | Y60: 2.8866 | Z60: 2.066839497 | AA60: 13.88176602 | AB60: 17.23900256 | AC60: 0.295608 | AD60: 0.735631 | AE60: 0.710974 | AF60: 0 | AG60: 1.239335
A61: 445 | B61: 1.996857287 | C61: 3.962 | D61: 1.999606989 | K61: 445 | L61: 948.5281726 | M61: 11112.22917 | N61: 1.28 | O61: 0 | P61: 0.596 | Q61: 140 | R61: 20599.27834 | Y61: 3.962 | Z61: 1.457650581 | AA61: 9.791494549 | AB61: 16.30986714 | AC61: 0.41856 | AD61: 0.550108 | AE61: 0.747896 | AF61: 0 | AG61: 0.92678
A62: 450 | B62: 2.001411677 | C62: 5.4336 | D62: 2.00416138 | K62: 450 | L62: 813.0241479 | M62: 6895.416667 | N62: 1.713 | O62: 0 | P62: 0.461 | Q62: 192 | R62: 19048.79503 | Y62: 5.4336 | Z62: 0.9128578316 | AA62: 6.092027322 | AB62: 15.07281865 | AC62: 0.560151 | AD62: 0.425503 | AE62: 0.8373 | AF62: 0 | AG62: 0.716855
A63: 455 | B63: 2.001568464 | C63: 7.1316 | D63: 2.004318166 | K63: 455 | L63: 677.5201233 | M63: 3951.604167 | N63: 2.173 | O63: 0.001 | P63: 0.379 | Q63: 252 | R63: 17110.69088 | Y63: 7.1316 | Z63: 0.5310090819 | AA63: 3.506435095 | AB63: 13.5314878 | AC63: 0.711057 | AD63: 0.35023 | AE63: 0.962128 | AF63: 0.0007323 | AG63: 0.589345
A64: 460 | B64: 2.001571321 | C64: 8.0938 | D64: 2.004321024 | K64: 460 | L64: 609.7681109 | M64: 2148.1875 | N64: 2.623 | O64: 0.001 | P64: 0.333 | Q64: 286 | R64: 15061.83793 | Y64: 8.0938 | Z64: 0.2976513737 | AA64: 1.923567366 | AB64: 11.91317869 | AC64: 0.858207 | AD64: 0.307772 | AE64: 1.100872 | AF64: 0.0007323 | AG64: 0.517815
A65: 465 | B65: 2.001571671 | C65: 12.0558 | D65: 2.004321374 | K65: 465 | L65: 609.7681109 | M65: 1166.916667 | N65: 3.035 | O65: 0.002 | P65: 0.304 | Q65: 426 | R65: 13123.73378 | Y65: 12.0558 | Z65: 0.1720487071 | AA65: 1.064955387 | AB65: 10.39176693 | AC65: 0.993417 | AD65: 0.281418 | AE65: 1.234274 | AF65: 0.0014646 | AG65: 0.47272
A66: 470 | B66: 2.001571671 | C66: 15.0556 | D66: 2.004321374 | K66: 470 | L66: 677.5201233 | M66: 663.0208333 | N66: 3.393 | O66: 0.002 | P66: 0.278 | Q66: 532 | R66: 11130.25523 | Y66: 15.0556 | Z66: 0.1100704153 | AA66: 0.628924678 | AB66: 8.836845816 | AC66: 1.110483 | AD66: 0.25742 | AE66: 1.349802 | AF66: 0.0014646 | AG66: 0.43229
A67: 475 | B67: 2.001571671 | C67: 18.3384 | D67: 2.004321374 | K67: 475 | L67: 745.2721356 | M67: 397.8125 | N67: 3.706 | O67: 0.003 | P67: 0.245 | Q67: 648 | R67: 9026.027876 | Y67: 18.3384 | Z67: 0.07864412344 | AA67: 0.4017455313 | AB67: 7.194986886 | AC67: 1.21332 | AD67: 0.227374 | AE67: 1.445818 | AF67: 0.0021969 | AG67: 0.380975
A68: 480 | B68: 2.001571671 | C68: 23.0928 | D68: 2.004321374 | K68: 480 | L68: 880.7761602 | M68: 238.6875 | N68: 4.001 | O68: 0.004 | P68: 0.204 | Q68: 816 | R68: 6811.05171 | Y68: 23.0928 | Z68: 0.06331687316 | AA68: 0.272267446 | AB68: 5.476149688 | AC68: 1.310271 | AD68: 0.189944 | AE68: 1.531502 | AF68: 0.0029292 | AG68: 0.31722
A69: 485 | B69: 2.001571671 | C69: 28.1302 | D69: 2.004321374 | K69: 485 | L69: 948.5281726 | M69: 159.125 | N69: 4.304 | O69: 0.005 | P69: 0.159 | Q69: 994 | R69: 4706.824352 | Y69: 28.1302 | Z69: 0.05565324802 | AA69: 0.2075284034 | AB69: 3.834290758 | AC69: 1.409838 | AD69: 0.148822 | AE69: 1.618106 | AF69: 0.0036615 | AG69: 0.247245
A70: 490 | B70: 2.001571671 | C70: 31.8658 | D70: 2.004321374 | K70: 490 | L70: 1151.78421 | M70: 106.0833333 | N70: 4.627 | O70: 0.007 | P70: 0.117 | Q70: 1126 | R70: 2934.84342 | Y70: 31.8658 | Z70: 0.05642503926 | AA70: 0.1757513798 | AB70: 2.473164363 | AC70: 1.516431 | AD70: 0.110882 | AE70: 1.713328 | AF70: 0.0051261 | AG70: 0.181935
A71: 495 | B71: 2.001571671 | C71: 36.5636 | D71: 2.004321374 | K71: 495 | L71: 1355.040247 | M71: 79.5625 | N71: 4.948 | O71: 0.009 | P71: 0.086 | Q71: 1292 | R71: 1661.232124 | Y71: 36.5636 | Z71: 0.06059149717 | AA71: 0.1671800852 | AB71: 1.503258134 | AC71: 1.62237 | AD71: 0.083095 | AE71: 1.81318 | AF71: 0.0065907 | AG71: 0.13373
A72: 500 | B72: 2.001571671 | C72: 43.8084 | D72: 2.004321374 | K72: 500 | L72: 1626.048296 | M72: 53.04166667 | N72: 5.217 | O72: 0.011 | P72: 0.065 | Q72: 1548 | R72: 885.9904663 | Y72: 43.8084 | Z72: 0.06727832994 | AA72: 0.1634869356 | AB72: 0.9345316155 | AC72: 1.711305 | AD72: 0.064538 | AE72: 1.899276 | AF72: 0.0080553 | AG72: 0.101075
A73: 505 | B73: 2.001571671 | C73: 49.0156 | D73: 2.004321374 | K73: 505 | L73: 1964.808357 | M73: 26.52083333 | N73: 5.361 | O73: 0.014 | P73: 0.054 | Q73: 1732 | R73: 387.620829 | Y73: 49.0156 | Z73: 0.07648553756 | AA73: 0.1646719309 | AB73: 0.5931091793 | AC73: 1.759851 | AD73: 0.055624 | AE73: 1.945482 | AF73: 0.0102522 | AG73: 0.08397
A74: 510 | B74: 2.001571671 | C74: 50.657 | D74: 2.004321374 | K74: 510 | L74: 2371.320431 | M74: 0 | N74: 5.319 | O74: 0.018 | P74: 0.049 | Q74: 1790 | R74: 110.7488083 | Y74: 50.657 | Z74: 0.08821312005 | AA74: 0.1707350711 | AB74: 0.4355219179 | AC74: 1.748061 | AD74: 0.052661 | AE74: 1.928016 | AF74: 0.0131814 | AG74: 0.076195
A75: 515 | B75: 2.001571671 | C75: 54.3926 | D75: 2.004321374 | K75: 515 | L75: 2845.584518 | M75: 0 | N75: 5.058 | O75: 0.022 | P75: 0.049 | Q75: 1922 | R75: 0 | Y75: 54.3926 | Z75: 0.1058557441 | AA75: 0.2048820853 | AB75: 0.4183009241 | AC75: 1.664658 | AD75: 0.054313 | AE75: 1.834578 | AF75: 0.0161106 | AG75: 0.076195
A76: 520 | B76: 2.001571671 | C76: 61.0714 | D76: 2.004321374 | K76: 520 | L76: 3523.104641 | M76: 0 | N76: 4.59 | O76: 0.028 | P76: 0.051 | Q76: 2158 | R76: 0 | Y76: 61.0714 | Z76: 0.1310594926 | AA76: 0.2536635341 | AB76: 0.5178963822 | AC76: 1.514538 | AD76: 0.058637 | AE76: 1.668006 | AF76: 0.0205044 | AG76: 0.079305
A77: 525 | B77: 2.001571671 | C77: 63.7316 | D77: 2.004321374 | K77: 525 | L77: 4403.880801 | M77: 0 | N77: 3.969 | O77: 0.035 | P77: 0.054 | Q77: 2252 | R77: 0 | Y77: 63.7316 | Z77: 0.1638243658 | AA77: 0.3170794177 | AB77: 0.6473704778 | AC77: 1.314873 | AD77: 0.064297 | AE77: 1.447146 | AF77: 0.0256305 | AG77: 0.08397
A78: 530 | B78: 2.001571671 | C78: 59.9394 | D78: 2.004321374 | K78: 530 | L78: 5487.912998 | M78: 0 | N78: 3.276 | O78: 0.043 | P78: 0.056 | Q78: 2118 | R78: 0 | Y78: 59.9394 | Z78: 0.2041503635 | AA78: 0.3951297359 | AB78: 0.8067232108 | AC78: 1.09215 | AD78: 0.069447 | AE78: 1.200024 | AF78: 0.0314889 | AG78: 0.08708
A79: 535 | B79: 2.001571671 | C79: 58.3546 | D79: 2.004321374 | K79: 535 | L79: 6639.697208 | M79: 0 | N79: 2.594 | O79: 0.053 | P79: 0.059 | Q79: 2062 | R79: 0 | Y79: 58.3546 | Z79: 0.2469967361 | AA79: 0.478058199 | AB79: 0.9760354896 | AC79: 0.873996 | AD79: 0.076346 | AE79: 0.957326 | AF79: 0.0388119 | AG79: 0.091745
A80: 540 | B80: 2.001571671 | C80: 61.0148 | D80: 2.004321374 | K80: 540 | L80: 7994.737454 | M80: 0 | N80: 1.991 | O80: 0.065 | P80: 0.062 | Q80: 2156 | R80: 0 | Y80: 61.0148 | Z80: 0.2974042333 | AA80: 0.5756210967 | AB80: 1.175226406 | AC80: 0.682647 | AD80: 0.084071 | AE80: 0.74291 | AF80: 0.0475995 | AG80: 0.09641
A81: 545 | B81: 2.001571671 | C81: 60.4488 | D81: 2.004321374 | K81: 545 | L81: 9553.033738 | M81: 0 | N81: 1.503 | O81: 0.08 | P81: 0.065 | Q81: 2136 | R81: 0 | Y81: 60.4488 | Z81: 0.3553728551 | AA81: 0.6878184291 | AB81: 1.404295959 | AC81: 0.530361 | AD81: 0.093035 | AE81: 0.569664 | AF81: 0.058584 | AG81: 0.101075
A82: 550 | B82: 2.001571671 | C82: 52.072 | D82: 2.004321374 | K82: 550 | L82: 11314.58606 | M82: 0 | N82: 1.143 | O82: 0.098 | P82: 0.069 | Q82: 1840 | R82: 0 | Y82: 52.072 | Z82: 0.4209026014 | AA82: 0.8146501962 | AB82: 1.663244151 | AC82: 0.421389 | AD82: 0.104161 | AE82: 0.442728 | AF82: 0.0717654 | AG82: 0.107295
A83: 555 | B83: 2.001571671 | C83: 42.733 | D83: 2.004321374 | K83: 555 | L83: 13414.89844 | M83: 0 | N83: 0.896 | O83: 0.119 | P83: 0.074 | Q83: 1510 | R83: 0 | Y83: 42.733 | Z83: 0.499034222 | AA83: 0.9658726877 | AB83: 1.971990071 | AC83: 0.350826 | AD83: 0.117449 | AE83: 0.356732 | AF83: 0.0871437 | AG83: 0.11507
A84: 560 | B84: 2.001571671 | C84: 37.922 | D84: 2.004321374 | K84: 560 | L84: 15989.47491 | M84: 0 | N84: 0.739 | O84: 0.144 | P84: 0.081 | Q84: 1340 | R84: 0 | Y84: 37.922 | Z84: 0.5948084666 | AA84: 1.151242193 | AB84: 2.350452812 | AC84: 0.311637 | AD84: 0.134235 | AE84: 0.303928 | AF84: 0.1054512 | AG84: 0.125955
A85: 565 | B85: 2.001571671 | C85: 35.7146 | D85: 2.004321374 | K85: 565 | L85: 19038.31546 | M85: 0 | N85: 0.645 | O85: 0.173 | P85: 0.091 | Q85: 1262 | R85: 0 | Y85: 35.7146 | Z85: 0.7082253352 | AA85: 1.370758713 | AB85: 2.798632373 | AC85: 0.294993 | AD85: 0.155442 | AE85: 0.275136 | AF85: 0.1266879 | AG85: 0.141505
A86: 570 | B86: 2.001571671 | C86: 31.4696 | D86: 2.004321374 | K86: 570 | L86: 22967.93218 | M86: 0 | N86: 0.591 | O86: 0.207 | P86: 0.106 | Q86: 1112 | R86: 0 | Y86: 31.4696 | Z86: 0.854407077 | AA86: 1.653691117 | AB86: 3.37628603 | AC86: 0.293859 | AD86: 0.183329 | AE86: 0.263094 | AF86: 0.1515861 | AG86: 0.16483
A87: 575 | B87: 2.001571671 | C87: 23.206 | D87: 2.004321374 | K87: 575 | L87: 27439.56499 | M87: 0 | N87: 0.559 | O87: 0.248 | P87: 0.127 | Q87: 820 | R87: 0 | Y87: 23.206 | Z87: 1.020751818 | AA87: 1.975648679 | AB87: 4.033616054 | AC87: 0.303321 | AD87: 0.219645 | AE87: 0.261844 | AF87: 0.1816104 | AG87: 0.197485
A88: 580 | B88: 2.001571671 | C88: 15.1688 | D88: 2.004321374 | K88: 580 | L88: 32249.95787 | M88: 0 | N88: 0.537 | O88: 0.295 | P88: 0.158 | Q88: 536 | R88: 0 | Y88: 15.1688 | Z88: 1.199698433 | AA88: 2.321996966 | AB88: 4.740743806 | AC88: 0.318969 | AD88: 0.267669 | AE88: 0.269034 | AF88: 0.2160285 | AG88: 0.24569
A89: 585 | B89: 2.001571668 | C89: 10.1314 | D89: 2.004321371 | K89: 585 | L89: 36450.58263 | M89: 0 | N89: 0.518 | O89: 0.35 | P89: 0.199 | Q89: 358 | R89: 0 | Y89: 10.1314 | Z89: 1.355961674 | AA89: 2.624441949 | AB89: 5.358235647 | AC89: 0.339486 | AD89: 0.328227 | AE89: 0.282158 | AF89: 0.256305 | AG89: 0.309445
A90: 590 | B90: 2.001570679 | C90: 7.641 | D90: 2.004320381 | K90: 590 | L90: 40109.1913 | M90: 0 | N90: 0.499 | O90: 0.413 | P90: 0.255 | Q90: 270 | R90: 0 | Y90: 7.641 | Z90: 1.492061916 | AA90: 2.887861773 | AB90: 5.896051121 | AC90: 0.363891 | AD90: 0.405934 | AE90: 0.302572 | AF90: 0.3024399 | AG90: 0.396525
A91: 595 | B91: 2.00155822 | C91: 6.509 | D91: 2.004307922 | K91: 595 | L91: 43496.79191 | M91: 0 | N91: 0.478 | O91: 0.486 | P91: 0.326 | Q91: 230 | R91: 0 | Y91: 6.509 | Z91: 1.618080659 | AA91: 3.131769018 | AB91: 6.394028411 | AC91: 0.392502 | AD91: 0.501616 | AE91: 0.32956 | AF91: 0.3558978 | AG91: 0.50693
A92: 600 | B92: 2.001515261 | C92: 5.8864 | D92: 2.004264964 | K92: 600 | L92: 47019.89655 | M92: 0 | N92: 0.454 | O92: 0.569 | P92: 0.416 | Q92: 208 | R92: 0 | Y92: 5.8864 | Z92: 1.749140152 | AA92: 3.385432552 | AB92: 6.911924793 | AC92: 0.424992 | AD92: 0.618965 | AE92: 0.364708 | AF92: 0.4166787 | AG92: 0.64688
A93: 605 | B93: 2.001411677 | C93: 5.4336 | D93: 2.00416138 | K93: 605 | L93: 51694.7854 | M93: 0 | N93: 0.428 | O93: 0.664 | P93: 0.524 | Q93: 192 | R93: 0 | Y93: 5.4336 | Z93: 1.923046017 | AA93: 3.722024549 | AB93: 7.599133454 | AC93: 0.46266 | AD93: 0.757884 | AE93: 0.407888 | AF93: 0.4862472 | AG93: 0.81482
A94: 610 | B94: 2.001173394 | C94: 5.0374 | D94: 2.003923097 | K94: 610 | L94: 58198.97859 | M94: 0 | N94: 0.4 | O94: 0.772 | P94: 0.65 | Q94: 178 | R94: 0 | Y94: 5.0374 | Z94: 2.165002003 | AA94: 4.190326458 | AB94: 8.555249852 | AC94: 0.505992 | AD94: 0.918786 | AE94: 0.4591 | AF94: 0.5653356 | AG94: 1.01075
A95: 615 | B95: 2.000901094 | C95: 4.811 | D95: 2.003650796 | K95: 615 | L95: 66938.98818 | M95: 0 | N95: 0.371 | O95: 0.894 | P95: 0.792 | Q95: 170 | R95: 0 | Y95: 4.811 | Z95: 2.49013036 | AA95: 4.819607149 | AB95: 9.840031262 | AC95: 0.555801 | AD95: 1.100238 | AE95: 0.51773 | AF95: 0.6546762 | AG95: 1.23156
A96: 620 | B96: 2.000285966 | C96: 4.528 | D96: 2.003035669 | K96: 620 | L96: 77711.55814 | M96: 0 | N96: 0.341 | O96: 1.031 | P96: 0.946 | Q96: 160 | R96: 0 | Y96: 4.528 | Z96: 2.890869963 | AA96: 5.595232186 | AB96: 11.42359905 | AC96: 0.612573 | AD96: 1.298961 | AE96: 0.581834 | AF96: 0.7550013 | AG96: 1.47103
A97: 625 | B97: 1.999672194 | C97: 4.3582 | D97: 2.002421896 | K97: 625 | L97: 89093.89621 | M97: 0 | N97: 0.311 | O97: 1.184 | P97: 1.108 | Q97: 154 | R97: 0 | Y97: 4.3582 | Z97: 3.314292939 | AA97: 6.414760527 | AB97: 13.09680274 | AC97: 0.677121 | AD97: 1.511676 | AE97: 0.649826 | AF97: 0.8670432 | AG97: 1.72294
A98: 630 | B98: 1.998377295 | C98: 4.1318 | D98: 2.001126997 | K98: 630 | L98: 98511.42592 | M98: 0 | N98: 0.281 | O98: 1.355 | P98: 1.271 | Q98: 146 | R98: 0 | Y98: 4.1318 | Z98: 3.664625044 | AA98: 7.092822666 | AB98: 14.48117961 | AC98: 0.750417 | AD98: 1.732748 | AE98: 0.718304 | AF98: 0.9922665 | AG98: 1.976405
A99: 635 | B99: 1.996857287 | C99: 3.962 | D99: 1.999606989 | K99: 635 | L99: 102305.5386 | M99: 0 | N99: 0.252 | O99: 1.545 | P99: 1.429 | Q99: 140 | R99: 0 | Y99: 3.962 | Z99: 3.805766036 | AA99: 7.36599878 | AB99: 15.03891418 | AC99: 0.833274 | AD99: 1.957052 | AE99: 0.78471 | AF99: 1.1314035 | AG99: 2.222095
A100: 640 | B100: 1.992570973 | C100: 3.679 | D100: 1.995320676 | K100: 640 | L100: 97969.40982 | M100: 0 | N100: 0.224 | O100: 1.754 | P100: 1.575 | Q100: 130 | R100: 0 | Y100: 3.679 | Z100: 3.644462045 | AA100: 7.053797507 | AB100: 14.40150324 | AC100: 0.925692 | AD100: 2.178127 | AE100: 0.845642 | AF100: 1.2844542 | AG100: 2.449125
A101: 645 | B101: 1.986518228 | C101: 3.4526 | D101: 1.989267931 | K101: 645 | L101: 86112.80767 | M101: 0 | N101: 0.197 | O101: 1.984 | P101: 1.704 | Q101: 122 | R101: 0 | Y101: 3.4526 | Z101: 3.203396445 | AA101: 6.200122152 | AB101: 12.65858273 | AC101: 1.028643 | AD101: 2.392184 | AE101: 0.89867 | AF101: 1.4528832 | AG101: 2.64972
A102: 650 | B102: 1.973134389 | C102: 3.1696 | D102: 1.975884092 | K102: 650 | L102: 70326.58879 | M102: 0 | N102: 0.172 | O102: 2.235 | P102: 1.814 | Q102: 112 | R102: 0 | Y102: 3.1696 | Z102: 2.616149103 | AA102: 5.063514393 | AB102: 10.33800855 | AC102: 1.142454 | AD102: 2.597377 | AE102: 0.94318 | AF102: 1.6366905 | AG102: 2.82077
A103: 655 | B103: 1.954697209 | C103: 2.9432 | D103: 1.957446912 | K103: 655 | L103: 54066.10584 | M103: 0 | N103: 0.149 | O103: 2.508 | P103: 1.903 | Q103: 104 | R103: 0 | Y103: 2.9432 | Z103: 2.011259137 | AA103: 3.89275962 | AB103: 7.947717558 | AC103: 1.267611 | AD103: 2.792273 | AE103: 0.9782 | AF103: 1.8366084 | AG103: 2.959165
A104: 660 | B104: 1.879914753 | C104: 2.4904 | D104: 1.882664455 | K104: 660 | L104: 36857.09471 | M104: 0 | N104: 0.128 | O104: 2.804 | P104: 1.972 | Q104: 88 | R104: 0 | Y104: 2.4904 | Z104: 1.371083923 | AA104: 2.653710819 | AB104: 5.417992922 | AC104: 1.4046 | AD104: 2.978208 | AE104: 1.004216 | AF104: 2.0533692 | AG104: 3.06646
A105: 665 | B105: 1.791976921 | C105: 2.2074 | D105: 1.794726624 | K105: 665 | L105: 25813.5167 | M105: 0 | N105: 0.109 | O105: 3.121 | P105: 2.026 | Q105: 78 | R105: 0 | Y105: 2.2074 | Z105: 0.9602628211 | AA105: 1.858573202 | AB105: 3.794586954 | AC105: 1.552449 | AD105: 3.158971 | AE105: 1.023658 | AF105: 2.2855083 | AG105: 3.15043
A106: 670 | B106: 1.661098736 | C106: 1.9244 | D106: 1.663848438 | K106: 670 | L106: 17547.77119 | M106: 0 | N106: 0.091 | O106: 3.462 | P106: 2.068 | Q106: 68 | R106: 0 | Y106: 1.9244 | Z106: 0.6527770884 | AA106: 1.263439526 | AB106: 2.579522365 | AC106: 1.712289 | AD106: 3.33857 | AE106: 1.037626 | AF106: 2.5352226 | AG106: 3.21574
A107: 675 | B107: 1.485235357 | C107: 1.6414 | D107: 1.48798506 | K107: 675 | L107: 11788.85014 | M107: 0 | N107: 0.076 | O107: 3.825 | P107: 2.105 | Q107: 58 | R107: 0 | Y107: 1.6414 | Z107: 0.4385452254 | AA107: 0.8487972104 | AB107: 1.732960971 | AC107: 1.883802 | AD107: 3.52264 | AE107: 1.050238 | AF107: 2.8010475 | AG107: 3.273275
A108: 680 | B108: 1.316195626 | C108: 1.415 | D108: 1.318945329 | K108: 680 | L108: 7723.729405 | M108: 0 | N108: 0.063 | O108: 4.209 | P108: 2.139 | Q108: 50 | R108: 0 | Y108: 1.415 | Z108: 0.2873227339 | AA108: 0.5561085172 | AB108: 1.135388223 | AC108: 2.066175 | AD108: 3.712614 | AE108: 1.062108 | AF108: 3.0822507 | AG108: 3.326145
A109: 685 | B109: 1.127821679 | C109: 1.1886 | D109: 1.130571381 | K109: 685 | L109: 4945.8969 | M109: 0 | N109: 0.052 | O109: 4.614 | P109: 2.176 | Q109: 42 | R109: 0 | Y109: 1.1886 | Z109: 0.1839873647 | AA109: 0.3561045768 | AB109: 0.7270468443 | AC109: 2.259408 | AD109: 3.91403 | AE109: 1.076152 | AF109: 3.3788322 | AG109: 3.38368
A110: 690 | B110: 0.9256825822 | C110: 0.9622 | D110: 0.9284322847 | K110: 690 | L110: 3184.344579 | M110: 0 | N110: 0.042 | O110: 5.037 | P110: 2.215 | Q110: 34 | R110: 0 | Y110: 0.9622 | Z110: 0.1184576184 | AA110: 0.2292728097 | AB110: 0.4680986532 | AC110: 2.461716 | AD110: 4.124726 | AE110: 1.091526 | AF110: 3.6885951 | AG110: 3.444325
A111: 695 | B111: 0.6605036711 | C111: 0.6792 | D111: 0.6632533736 | K111: 695 | L111: 2100.312382 | M111: 0 | N111: 0.034 | O111: 5.479 | P111: 2.256 | Q111: 24 | R111: 0 | Y111: 0.6792 | Z111: 0.07813162061 | AA111: 0.1512224915 | AB111: 0.3087459202 | AC111: 2.673912 | AD111: 4.345115 | AE111: 1.108588 | AF111: 4.0122717 | AG111: 3.50808
A112: 700 | B112: 0.5518712804 | C112: 0.566 | D112: 0.5546209828 | K112: 700 | L112: 1355.040247 | M112: 0 | N112: 0.027 | O112: 5.936 | P112: 2.296 | Q112: 20 | R112: 0 | Y112: 0.566 | Z112: 0.05040749717 | AA112: 0.09756289775 | AB112: 0.1991909162 | AC112: 2.893725 | AD112: 4.570776 | AE112: 1.125522 | AF112: 4.3469328 | AG112: 3.57028
A113: 705 | B113: 0.3870901623 | C113: 0.3962 | D113: 0.3898398648 | K113: 705 | L113: 880.7761602 | M113: 0 | N113: 0.021 | O113: 6.405 | P113: 2.329 | Q113: 14 | R113: 0 | Y113: 0.3962 | Z113: 0.03276487316 | AA113: 0.06341588354 | AB113: 0.1294740956 | AC113: 3.119697 | AD113: 4.794932 | AE113: 1.139412 | AF113: 4.6903815 | AG113: 3.621595
A114: 710 | B114: 0.276317929 | C114: 0.283 | D114: 0.2790676315 | K114: 710 | L114: 609.7681109 | M114: 0 | N114: 0.016 | O114: 6.885 | P114: 2.35 | Q114: 10 | R114: 0 | Y114: 0.283 | Z114: 0.02268337373 | AA114: 0.04390330399 | AB114: 0.08963591231 | AC114: 3.351342 | AD114: 5.012555 | AE114: 1.147828 | AF114: 5.0418855 | AG114: 3.65425
A115: 715 | B115: 0.164997943 | C115: 0.1698 | D115: 0.1677476454 | K115: 715 | L115: 406.512074 | M115: 0 | N115: 0.013 | O115: 7.373 | P115: 2.355 | Q115: 6 | R115: 0 | Y115: 0.1698 | Z115: 0.01512224915 | AA115: 0.02926886932 | AB115: 0.05975727487 | AC115: 3.587529 | AD115: 5.218714 | AE115: 1.149184 | AF115: 5.3992479 | AG115: 3.662025
A116: 720 | B116: 0.05325215697 | C116: 0.0566 | D116: =-LOG(($I$31+10^(-C116))/($I$31+1)) -> 0.05600185943 | K116: 720 | L116: 271.0080493 | M116: 0 | N116: 0.01 | O116: 7.864 | P116: 2.337 | Q116: 2 | R116: 0 | Y116: 0.0566 | Z116: 0.01008149943 | AA116: 0.01951257955 | AB116: 0.03983818325 | AC116: 3.825174 | AD116: 5.404883 | AE116: 1.139362 | AF116: 5.7588072 | AG116: 3.634035
A117: =A116+5 -> 725 | B117: =D117+$B$50 -> -0.002749702462 | C117: =$B$10/$B$11*HLOOKUP($B$5,Y$42:AR$139,ROW()-42+1) -> 0 | D117: 0 | K117: =K116+5 -> 725 | L117: 203.256037 | M117: 0 | N117: 0.007 | O117: 8.354 | P117: 2.294 | Q117: 0 | R117: 0 | Y117: =Q117*$Y$37 -> 0 | Z117: =L117*$Z$37+M117*$Z$39 -> 0.007561124576 | AA117: =L117*$AA$37+M117*$AA$39 -> 0.01463443466 | AB117: =L117*$AB$37+R117*$AB$39 -> 0.02987863744 | AC117: =O117*$AC$37+N117*$AC$39 -> 4.062333 | AD117: =O117*$AD$37+P117*$AD$39 -> 5.567564 | AE117: =P117*$AE$37+N117*$AE$39 -> 1.11739 | AF117: =O117*AF$37 -> 6.1176342 | AG117: =P117*AG$39 -> 3.56717
A118: 730 | B118: -0.002749702462 | C118: 0 | D118: 0 | K118: 730 | L118: 0 | M118: 0 | N118: 0.005 | O118: 8.841 | P118: 2.226 | Q118: 0 | R118: 0 | Y118: 0 | Z118: 0 | AA118: 0 | AB118: 0 | AC118: 4.298361 | AD118: 5.705931 | AE118: 1.083626 | AF118: 6.4742643 | AG118: 3.46143
A119: 735 | B119: -0.002749702462 | C119: 0 | D119: 0 | K119: 735 | L119: 0 | M119: 0 | N119: 0.004 | O119: 9.32 | P119: 2.133 | Q119: 0 | R119: 0 | Y119: 0 | Z119: 0 | AA119: 0 | AB119: 0 | AC119: 4.530828 | AD119: 5.817919 | AE119: 1.03807 | AF119: 6.825036 | AG119: 3.316815
A120: 740 | B120: -0.002749702462 | C120: 0 | D120: 0 | K120: 740 | L120: 0 | M120: 0 | N120: 0.003 | O120: 9.786 | P120: 2.018 | Q120: 0 | R120: 0 | Y120: 0 | Z120: 0 | AA120: 0 | AB120: 0 | AC120: 4.756977 | AD120: 5.904232 | AE120: 0.981822 | AF120: 7.1662878 | AG120: 3.13799
A121: 745 | B121: -0.002749702462 | C121: 0 | D121: 0 | K121: 745 | L121: 0 | M121: 0 | N121: 0.002 | O121: 10.236 | P121: 1.885 | Q121: 0 | R121: 0 | Y121: 0 | Z121: 0 | AA121: 0 | AB121: 0 | AC121: 4.97535 | AD121: 5.967323 | AE121: 0.916826 | AF121: 7.4958228 | AG121: 2.931175
A122: 750 | B122: -0.002749702462 | C122: 0 | D122: 0 | K122: 750 | L122: 0 | M122: 0 | N122: 0.001 | O122: 10.665 | P122: 1.74 | Q122: 0 | R122: 0 | Y122: 0 | Z122: 0 | AA122: 0 | AB122: 0 | AC122: 5.183517 | AD122: 6.010665 | AE122: 0.845998 | AF122: 7.8099795 | AG122: 2.7057
A123: 755 | B123: -0.002749702462 | C123: 0 | D123: 0 | K123: 755 | L123: 0 | M123: 0 | N123: 0.001 | O123: 11.068 | P123: 1.588 | Q123: 0 | R123: 0 | Y123: 0 | Z123: 0 | AA123: 0 | AB123: 0 | AC123: 5.379375 | AD123: 6.036808 | AE123: 0.772126 | AF123: 8.1050964 | AG123: 2.46934
A124: 760 | B124: -0.002749702462 | C124: 0 | D124: 0 | K124: 760 | L124: 0 | M124: 0 | N124: 0 | O124: 11.442 | P124: 1.433 | Q124: 0 | R124: 0 | Y124: 0 | Z124: 0 | AA124: 0 | AB124: 0 | AC124: 5.560812 | AD124: 6.048205 | AE124: 0.696438 | AF124: 8.3789766 | AG124: 2.228315
A125: 765 | B125: -0.002749702462 | C125: 0 | D125: 0 | K125: 765 | L125: 0 | M125: 0 | N125: 0 | O125: 11.782 | P125: 1.28 | Q125: 0 | R125: 0 | Y125: 0 | Z125: 0 | AA125: 0 | AB125: 0 | AC125: 5.726052 | AD125: 6.047406 | AE125: 0.62208 | AF125: 8.6279586 | AG125: 1.9904
A126: 770 | B126: -0.002749702462 | C126: 0 | D126: 0 | K126: 770 | L126: 0 | M126: 0 | N126: 0 | O126: 12.085 | P126: 1.134 | Q126: 0 | R126: 0 | Y126: 0 | Z126: 0 | AA126: 0 | AB126: 0 | AC126: 5.87331 | AD126: 6.037787 | AE126: 0.551124 | AF126: 8.8498455 | AG126: 1.76337
A127: 775 | B127: -0.002749702462 | C127: 0 | D127: 0 | K127: 775 | L127: 0 | M127: 0 | N127: 0 | O127: 12.348 | P127: 0.995 | Q127: 0 | R127: 0 | Y127: 0 | Z127: 0 | AA127: 0 | AB127: 0 | AC127: 6.001128 | AD127: 6.018109 | AE127: 0.48357 | AF127: 9.0424404 | AG127: 1.547225
A128: 780 | B128: -0.002749702462 | C128: 0 | D128: 0 | K128: 780 | L128: 0 | M128: 0 | N128: 0 | O128: 12.569 | P128: 0.866 | Q128: 0 | R128: 0 | Y128: 0 | Z128: 0 | AA128: 0 | AB128: 0 | AC128: 6.108534 | AD128: 5.990315 | AE128: 0.420876 | AF128: 9.2042787 | AG128: 1.34663
A129: 785 | B129: -0.002749702462 | C129: 0 | D129: 0 | K129: 785 | L129: 0 | M129: 0 | N129: 0 | O129: 12.745 | P129: 0.749 | Q129: 0 | R129: 0 | Y129: 0 | Z129: 0 | AA129: 0 | AB129: 0 | AC129: 6.19407 | AD129: 5.955012 | AE129: 0.364014 | AF129: 9.3331635 | AG129: 1.164695
A130: 790 | B130: -0.002749702462 | C130: 0 | D130: 0 | K130: 790 | L130: 0 | M130: 0 | N130: 0 | O130: 12.878 | P130: 0.642 | Q130: 0 | R130: 0 | Y130: 0 | Z130: 0 | AA130: 0 | AB130: 0 | AC130: 6.258708 | AD130: 5.91118 | AE130: 0.312012 | AF130: 9.4305594 | AG130: 0.99831
A131: 795 | B131: -0.002749702462 | C131: 0 | D131: 0 | K131: 795 | L131: 0 | M131: 0 | N131: 0 | O131: 12.967 | P131: 0.547 | Q131: 0 | R131: 0 | Y131: 0 | Z131: 0 | AA131: 0 | AB131: 0 | AC131: 6.301962 | AD131: 5.860252 | AE131: 0.265842 | AF131: 9.4957341 | AG131: 0.850585
A132: 800 | B132: -0.002749702462 | C132: 0 | D132: 0 | K132: 800 | L132: 0 | M132: 0 | N132: 0 | O132: 13.018 | P132: 0.462 | Q132: 0 | R132: 0 | Y132: 0 | Z132: 0 | AA132: 0 | AB132: 0 | AC132: 6.326748 | AD132: 5.80286 | AE132: 0.224532 | AF132: 9.5330814 | AG132: 0.71841
A133: 805 | B133: -0.002749702462 | C133: 0 | D133: 0 | K133: 805 | L133: 0 | M133: 0 | N133: 0 | O133: 13.035 | P133: 0.388 | Q133: 0 | R133: 0 | Y133: 0 | Z133: 0 | AA133: 0 | AB133: 0 | AC133: 6.33501 | AD133: 5.741579 | AE133: 0.188568 | AF133: 9.5455305 | AG133: 0.60334
A134: 810 | B134: -0.002749702462 | C134: 0 | D134: 0 | K134: 810 | L134: 0 | M134: 0 | N134: 0 | O134: 13.026 | P134: 0.323 | Q134: 0 | R134: 0 | Y134: 0 | Z134: 0 | AA134: 0 | AB134: 0 | AC134: 6.330636 | AD134: 5.677867 | AE134: 0.156978 | AF134: 9.5389398 | AG134: 0.502265
A135: 815 | B135: -0.002749702462 | C135: 0 | D135: 0 | K135: 815 | L135: 0 | M135: 0 | N135: 0 | O135: 12.998 | P135: 0.266 | Q135: 0 | R135: 0 | Y135: 0 | Z135: 0 | AA135: 0 | AB135: 0 | AC135: 6.317028 | AD135: 5.613692 | AE135: 0.129276 | AF135: 9.5184354 | AG135: 0.41363
A136: 820 | B136: -0.002749702462 | C136: 0 | D136: 0 | K136: 820 | L136: 0 | M136: 0 | N136: 0 | O136: 12.955 | P136: 0.218 | Q136: 0 | R136: 0 | Y136: 0 | Z136: 0 | AA136: 0 | AB136: 0 | AC136: 6.29613 | AD136: 5.551629 | AE136: 0.105948 | AF136: 9.4869465 | AG136: 0.33899
A137: 825 | B137: -0.002749702462 | C137: 0 | D137: 0 | K137: 825 | L137: 0 | M137: 0 | N137: 0 | O137: 12.895 | P137: 0.177 | Q137: 0 | R137: 0 | Y137: 0 | Z137: 0 | AA137: 0 | AB137: 0 | AC137: 6.26697 | AD137: 5.489006 | AE137: 0.086022 | AF137: 9.4430085 | AG137: 0.275235
A138: 830 | B138: -0.002749702462 | C138: 0 | D138: 0 | K138: 830 | L138: 0 | M138: 0 | N138: 0 | O138: 12.811 | P138: 0.142 | Q138: 0 | R138: 0 | Y138: 0 | Z138: 0 | AA138: 0 | AB138: 0 | AC138: 6.226146 | AD138: 5.422009 | AE138: 0.069012 | AF138: 9.3814953 | AG138: 0.22081
A139: 835 | B139: -0.002749702462 | C139: 0 | D139: 0 | K139: 835 | L139: 0 | M139: 0 | N139: 0 | O139: 12.685 | P139: 0.113 | Q139: 0 | R139: 0 | Y139: 0 | Z139: 0 | AA139: 0 | AB139: 0 | AC139: 6.16491 | AD139: 5.343204 | AE139: 0.054918 | AF139: 9.2892255 | AG139: 0.175715

Sheet Préparation solutions
A1: Spectre d'absorption d'une solution
A4: 1- Choix du solide
A5: Composé | B5: Permanganate de potassium
A6: MM / g.mol-1 | B6: =HLOOKUP($B$5,L$42:S$139,10) -> 158.0249
K7: l / nm | L7: 525 | O7: Absorbance | P7: =INT(1000*(VLOOKUP(L7,A52:D139,4)+(RAND()-0.5)*$G$31))/1000 -> 1.999
O8: ="mesurée à "&L7&"nm" -> mesurée à 525nm
A9: 2- Préparation d'une solution mère à partir du solide | D9: 3- Préparation solution fille par dilution | H9: 4- Spectre de la solution fille | K9: C | L9: =E15 -> 0.00963772165 | M9: mol.L-1
A10: masse / g | B10: 0.1523 | D10: V pipette / mL | E10: 25
A11: Volume fiole / mL | B11: 100 | D11: V fiole / mL | E11: 25
B13: =IF(B10/B11*1000>B48,"IMPOSSIBLE A DISSOUDRE EN TOTALITE : LIMITE DE SOLUBILITE DEPASSEE","") -> 
D15: C / mol.L-1 | E15: =IF(B10/B11*1000>B48,0,B10/B6/(B11/1000)*E10/E11) -> 0.00963772165
F31: bruit | G31: 0.01 | H31: Ip | I31: 0.01 | K31: e / L.mol‑1.cm-1 | L31: =LOOKUP(L7,A52:A139,E52:E139) -> 2252
A41: Solution étudiée
L42: Bleu patenté | M42: Jaune de quinoléïne | N42: Nitrate de cobalt | O42: Nitrate de cuivre trihydraté | P42: Nitrate de nickel hexahydraté | Q42: Permanganate de potassium | R42: Tartrazine
A43: H | B43: =HLOOKUP($B$5,$L$42:$S$139,2) -> 0.7921568627 | K43: H | L43: 0.62 | M43: =37/255 -> 0.1450980392 | N43: =242/255 -> 0.9490196078 | O43: 0.62 | P43: =125/255 -> 0.4901960784 | Q43: 0.7921568627 | R43: =40/255 -> 0.1568627451
A44: S | B44: =HLOOKUP($B$5,$L$42:$S$139,3) -> 0.6509803922 | K44: S | L44: 1 | M44: 1 | N44: =159/255 -> 0.6235294118 | O44: 1 | P44: =197/255 -> 0.7725490196 | Q44: 0.6509803922 | R44: 1
A45: L | B45: =HLOOKUP($B$5,$L$42:$S$139,4) -> 7.16748355e-05 | K45: L | L45: =1-L47 -> 0 | M45: =1-M47 -> 0 | N45: =1-N47 -> 0.9779782335 | O45: =1-O47 -> 0.9889278202 | P45: =1-P47 -> 0.9779782335 | Q45: 7.16748355e-05 | R45: 0
A46: Concentration à 0,5 de Luminosité | B46: =HLOOKUP($B$5,$L$42:$S$139,5) -> 0.0007 | K46: Concentration à 0,5 de Luminosité | L46: 1e-05 | M46: 6e-05 | N46: 0.3 | O46: 0.6 | P46: 0.3 | Q46: 0.0007 | R46: 6e-05
B47: =HLOOKUP($B$5,$L$42:$S$139,6) -> 0.9999283252 | L47: =1-EXP(-(LN(2)/L46*$E$15)) -> 1 | M47: 1 | N47: 0.02202176647 | O47: 0.01107217982 | P47: 0.02202176647 | Q47: 0.9999283252 | R47: 1
A48: solubilité g/L | B48: =HLOOKUP($B$5,$L$42:$S$139,7) -> 64 | K48: solubilité g/L | L48: 84 | M48: 220 | N48: 1330 | O48: 1380 | P48: 940 | Q48: 64 | R48: 38
B50: =(RAND()-0.5)*$G$31 -> -0.003378734447
A51: l / nm | B51: Absorbance | C51: Abs théo | D51: Signal vrai | E51: e / L.mol‑1.cm-1 | G51: coeff | H51: 1.4 | L51: 582.667306 | M51: 477.375 | N51: 182.943 | O51: 241.6 | P51: 182.703 | Q51: =39.0893+54.938+15.9994*4 -> 158.0249 | R51: 534.363
A52: 400 | B52: =D52+$B$50 -> 0.1869800636 | C52: =E52*$E$15 -> 0.192754433 | D52: =-LOG(($I$31+10^(-C52))/($I$31+1)) -> 0.1903587981 | E52: =HLOOKUP($B$5,L$42:S$139,ROW()-42+1) -> 20 | K52: 400 | L52: 10501.56191 | M52: 22436.625 | N52: 0.009 | O52: 0 | P52: 4.526 | Q52: 20 | R52: 20156.28311
A53: =A52+5 -> 405 | B53: =D53+$B$50 -> 0.2059531193 | C53: 0.2120298763 | D53: 0.2093318538 | E53: 22 | G53: =L7 -> 525 | H53: =P7+0.08*H51 -> 2.111 | K53: =K52+5 -> 405 | L53: 11788.85014 | M53: 24584.8125 | N53: 0.018 | O53: 0 | P53: 3.994 | Q53: 22 | R53: 21097.64798
A54: 410 | B54: 0.2249126767 | C54: 0.2313053196 | D54: 0.2282914112 | E54: 24 | G54: =G53 -> 525 | H54: =P7-0.08*H51 -> 1.887 | K54: 410 | L54: 12263.11423 | M54: 25406.95833 | N54: 0.036 | O54: 0 | P54: 3.429 | Q54: 24 | R54: 21872.88964
A55: 415 | B55: 0.2627889032 | C55: 0.2698562062 | D55: 0.2661676376 | E55: 28 | K55: 415 | L55: 10772.56996 | M55: 24796.97917 | N55: 0.069 | O55: 0 | P55: 2.863 | Q55: 28 | R55: 22482.00808
A56: 420 | B56: 0.2817043121 | C56: 0.2891316495 | D56: 0.2850830465 | E56: 30 | G56: =L7-10 -> 515 | H56: =P7 -> 1.999 | K56: 420 | L56: 8130.241479 | M56: 23497.45833 | N56: 0.128 | O56: 0 | P56: 2.326 | Q56: 30 | R56: 22869.62891
A57: 425 | B57: 0.3571986144 | C57: 0.3662334227 | D57: 0.3605773488 | E57: 38 | G57: =L7+10 -> 535 | H57: =P7 -> 1.999 | K57: 425 | L57: 5352.408974 | M57: 22569.22917 | N57: 0.227 | O57: 0 | P57: 1.839 | Q57: 38 | R57: 23035.75212
A58: 430 | B58: 0.5072177224 | C58: 0.5204369691 | D58: 0.5105964568 | E58: 54 | K58: 430 | L58: 3319.848604 | M58: 21614.47917 | N58: 0.381 | O58: 0 | P58: 1.418 | Q58: 54 | R58: 22869.62891
A59: 435 | B59: 0.7105651292 | C59: 0.7324668454 | D59: 0.7139438636 | E59: 76 | K59: 435 | L59: 2032.56037 | M59: 19545.85417 | N59: 0.604 | O59: 0 | P59: 1.07 | Q59: 76 | R59: 22426.63368
A60: 440 | B60: 0.9441116343 | C60: 0.9830476083 | D60: 0.9474903688 | E60: 102 | K60: 440 | L60: 1355.040247 | M60: 15753.375 | N60: 0.904 | O60: 0 | P60: 0.797 | Q60: 102 | R60: 21706.76642
A61: 445 | B61: 1.262619057 | C61: 1.349281031 | D61: 1.265997791 | E61: 140 | K61: 445 | L61: 948.5281726 | M61: 11112.22917 | N61: 1.28 | O61: 0 | P61: 0.596 | Q61: 140 | R61: 20599.27834
A62: 450 | B62: 1.61872762 | C62: 1.850442557 | D62: 1.622106355 | E62: 192 | K62: 450 | L62: 813.0241479 | M62: 6895.416667 | N62: 1.713 | O62: 0 | P62: 0.461 | Q62: 192 | R62: 19048.79503
A63: 455 | B63: 1.86338472 | C63: 2.428705856 | D63: 1.866763455 | E63: 252 | K63: 455 | L63: 677.5201233 | M63: 3951.604167 | N63: 2.173 | O63: 0.001 | P63: 0.379 | Q63: 252 | R63: 17110.69088
A64: 460 | B64: 1.930819301 | C64: 2.756388392 | D64: 1.934198035 | E64: 286 | K64: 460 | L64: 609.7681109 | M64: 2148.1875 | N64: 2.623 | O64: 0.001 | P64: 0.333 | Q64: 286 | R64: 15061.83793
A65: 465 | B65: 1.997550935 | C65: 4.105669423 | D65: 2.00092967 | E65: 426 | K65: 465 | L65: 609.7681109 | M65: 1166.916667 | N65: 3.035 | O65: 0.002 | P65: 0.304 | Q65: 426 | R65: 13123.73378
A66: 470 | B66: 2.000618781 | C66: 5.127267918 | D66: 2.003997516 | E66: 532 | K66: 470 | L66: 677.5201233 | M66: 663.0208333 | N66: 3.393 | O66: 0.002 | P66: 0.278 | Q66: 532 | R66: 11130.25523
A67: 475 | B67: 2.000917949 | C67: 6.245243629 | D67: 2.004296683 | E67: 648 | K67: 475 | L67: 745.2721356 | M67: 397.8125 | N67: 3.706 | O67: 0.003 | P67: 0.245 | Q67: 648 | R67: 9026.027876
A68: 480 | B68: 2.000942046 | C68: 7.864380867 | D68: 2.00432078 | E68: 816 | K68: 480 | L68: 880.7761602 | M68: 238.6875 | N68: 4.001 | O68: 0.004 | P68: 0.204 | Q68: 816 | R68: 6811.05171
A69: 485 | B69: 2.000942628 | C69: 9.57989532 | D69: 2.004321362 | E69: 994 | K69: 485 | L69: 948.5281726 | M69: 159.125 | N69: 4.304 | O69: 0.005 | P69: 0.159 | Q69: 994 | R69: 4706.824352
A70: 490 | B70: 2.000942639 | C70: 10.85207458 | D70: 2.004321373 | E70: 1126 | K70: 490 | L70: 1151.78421 | M70: 106.0833333 | N70: 4.627 | O70: 0.007 | P70: 0.117 | Q70: 1126 | R70: 2934.84342
A71: 495 | B71: 2.000942639 | C71: 12.45193637 | D71: 2.004321374 | E71: 1292 | K71: 495 | L71: 1355.040247 | M71: 79.5625 | N71: 4.948 | O71: 0.009 | P71: 0.086 | Q71: 1292 | R71: 1661.232124
A72: 500 | B72: 2.000942639 | C72: 14.91919311 | D72: 2.004321374 | E72: 1548 | K72: 500 | L72: 1626.048296 | M72: 53.04166667 | N72: 5.217 | O72: 0.011 | P72: 0.065 | Q72: 1548 | R72: 885.9904663
A73: 505 | B73: 2.000942639 | C73: 16.6925339 | D73: 2.004321374 | E73: 1732 | K73: 505 | L73: 1964.808357 | M73: 26.52083333 | N73: 5.361 | O73: 0.014 | P73: 0.054 | Q73: 1732 | R73: 387.620829
A74: 510 | B74: 2.000942639 | C74: 17.25152175 | D74: 2.004321374 | E74: 1790 | K74: 510 | L74: 2371.320431 | M74: 0 | N74: 5.319 | O74: 0.018 | P74: 0.049 | Q74: 1790 | R74: 110.7488083
A75: 515 | B75: 2.000942639 | C75: 18.52370101 | D75: 2.004321374 | E75: 1922 | K75: 515 | L75: 2845.584518 | M75: 0 | N75: 5.058 | O75: 0.022 | P75: 0.049 | Q75: 1922 | R75: 0
A76: 520 | B76: 2.000942639 | C76: 20.79820332 | D76: 2.004321374 | E76: 2158 | K76: 520 | L76: 3523.104641 | M76: 0 | N76: 4.59 | O76: 0.028 | P76: 0.051 | Q76: 2158 | R76: 0
A77: 525 | B77: 2.000942639 | C77: 21.70414916 | D77: 2.004321374 | E77: 2252 | K77: 525 | L77: 4403.880801 | M77: 0 | N77: 3.969 | O77: 0.035 | P77: 0.054 | Q77: 2252 | R77: 0
A78: 530 | B78: 2.000942639 | C78: 20.41269446 | D78: 2.004321374 | E78: 2118 | K78: 530 | L78: 5487.912998 | M78: 0 | N78: 3.276 | O78: 0.043 | P78: 0.056 | Q78: 2118 | R78: 0
A79: 535 | B79: 2.000942639 | C79: 19.87298204 | D79: 2.004321374 | E79: 2062 | K79: 535 | L79: 6639.697208 | M79: 0 | N79: 2.594 | O79: 0.053 | P79: 0.059 | Q79: 2062 | R79: 0
A80: 540 | B80: 2.000942639 | C80: 20.77892788 | D80: 2.004321374 | E80: 2156 | K80: 540 | L80: 7994.737454 | M80: 0 | N80: 1.991 | O80: 0.065 | P80: 0.062 | Q80: 2156 | R80: 0
A81: 545 | B81: 2.000942639 | C81: 20.58617344 | D81: 2.004321374 | E81: 2136 | K81: 545 | L81: 9553.033738 | M81: 0 | N81: 1.503 | O81: 0.08 | P81: 0.065 | Q81: 2136 | R81: 0
A82: 550 | B82: 2.000942639 | C82: 17.73340784 | D82: 2.004321374 | E82: 1840 | K82: 550 | L82: 11314.58606 | M82: 0 | N82: 1.143 | O82: 0.098 | P82: 0.069 | Q82: 1840 | R82: 0
A83: 555 | B83: 2.000942639 | C83: 14.55295969 | D83: 2.004321374 | E83: 1510 | K83: 555 | L83: 13414.89844 | M83: 0 | N83: 0.896 | O83: 0.119 | P83: 0.074 | Q83: 1510 | R83: 0
A84: 560 | B84: 2.000942639 | C84: =E84*$E$15 -> 12.91454701 | D84: =-LOG(($I$31+10^(-C84))/($I$31+1)) -> 2.004321374 | E84: =HLOOKUP($B$5,L$42:S$139,ROW()-42+1) -> 1340 | K84: 560 | L84: 15989.47491 | M84: 0 | N84: 0.739 | O84: 0.144 | P84: 0.081 | Q84: 1340 | R84: 0
A85: 565 | B85: 2.000942639 | C85: 12.16280472 | D85: 2.004321374 | E85: 1262 | K85: 565 | L85: 19038.31546 | M85: 0 | N85: 0.645 | O85: 0.173 | P85: 0.091 | Q85: 1262 | R85: 0
A86: 570 | B86: 2.000942639 | C86: 10.71714648 | D86: 2.004321373 | E86: 1112 | K86: 570 | L86: 22967.93218 | M86: 0 | N86: 0.591 | O86: 0.207 | P86: 0.106 | Q86: 1112 | R86: 0
A87: 575 | B87: 2.000942096 | C87: 7.902931753 | D87: 2.004320831 | E87: 820 | K87: 575 | L87: 27439.56499 | M87: 0 | N87: 0.559 | O87: 0.248 | P87: 0.127 | Q87: 820 | R87: 0
A88: 580 | B88: 2.000646281 | C88: 5.165818805 | D88: 2.004025015 | E88: 536 | K88: 580 | L88: 32249.95787 | M88: 0 | N88: 0.537 | O88: 0.295 | P88: 0.158 | Q88: 536 | R88: 0
A89: 585 | B89: 1.985810788 | C89: 3.450304351 | D89: 1.989189522 | E89: 358 | K89: 585 | L89: 36450.58263 | M89: 0 | N89: 0.518 | O89: 0.35 | P89: 0.199 | Q89: 358 | R89: 0
A90: 590 | B90: 1.904057594 | C90: 2.602184846 | D90: 1.907436329 | E90: 270 | K90: 590 | L90: 40109.1913 | M90: 0 | N90: 0.499 | O90: 0.413 | P90: 0.255 | Q90: 270 | R90: 0
A91: 595 | B91: 1.794875641 | C91: 2.21667598 | D91: 1.798254375 | E91: 230 | K91: 595 | L91: 43496.79191 | M91: 0 | N91: 0.478 | O91: 0.486 | P91: 0.326 | Q91: 230 | R91: 0
A92: 600 | B92: 1.702229482 | C92: 2.004646103 | D92: 1.705608217 | E92: 208 | K92: 600 | L92: 47019.89655 | M92: 0 | N92: 0.454 | O92: 0.569 | P92: 0.416 | Q92: 208 | R92: 0
A93: 605 | B93: 1.61872762 | C93: 1.850442557 | D93: 1.622106355 | E93: 192 | K93: 605 | L93: 51694.7854 | M93: 0 | N93: 0.428 | O93: 0.664 | P93: 0.524 | Q93: 192 | R93: 0
A94: 610 | B94: 1.534780695 | C94: 1.715514454 | D94: 1.538159429 | E94: 178 | K94: 610 | L94: 58198.97859 | M94: 0 | N94: 0.4 | O94: 0.772 | P94: 0.65 | Q94: 178 | R94: 0
A95: 615 | B95: 1.48252663 | C95: 1.638412681 | D95: 1.485905365 | E95: 170 | K95: 615 | L95: 66938.98818 | M95: 0 | N95: 0.371 | O95: 0.894 | P95: 0.792 | Q95: 170 | R95: 0
A96: 620 | B96: 1.413170387 | C96: 1.542035464 | D96: 1.416549122 | E96: 160 | K96: 620 | L96: 77711.55814 | M96: 0 | N96: 0.341 | O96: 1.031 | P96: 0.946 | Q96: 160 | R96: 0
A97: 625 | B97: 1.369562459 | C97: 1.484209134 | D97: 1.372941194 | E97: 154 | K97: 625 | L97: 89093.89621 | M97: 0 | N97: 0.311 | O97: 1.184 | P97: 1.108 | Q97: 154 | R97: 0
A98: 630 | B98: 1.309290971 | C98: 1.407107361 | D98: 1.312669705 | E98: 146 | K98: 630 | L98: 98511.42592 | M98: 0 | N98: 0.281 | O98: 1.355 | P98: 1.271 | Q98: 146 | R98: 0
A99: 635 | B99: 1.262619057 | C99: 1.349281031 | D99: 1.265997791 | E99: 140 | K99: 635 | L99: 102305.5386 | M99: 0 | N99: 0.252 | O99: 1.545 | P99: 1.429 | Q99: 140 | R99: 0
A100: 640 | B100: 1.182324938 | C100: 1.252903815 | D100: 1.185703673 | E100: 130 | K100: 640 | L100: 97969.40982 | M100: 0 | N100: 0.224 | O100: 1.754 | P100: 1.575 | Q100: 130 | R100: 0
A101: 645 | B101: 1.116084553 | C101: 1.175802041 | D101: 1.119463288 | E101: 122 | K101: 645 | L101: 86112.80767 | M101: 0 | N101: 0.197 | O101: 1.984 | P101: 1.704 | Q101: 122 | R101: 0
A102: 650 | B102: 1.031123337 | C102: 1.079424825 | D102: 1.034502072 | E102: 112 | K102: 650 | L102: 70326.58879 | M102: 0 | N102: 0.172 | O102: 2.235 | P102: 1.814 | Q102: 112 | R102: 0
A103: 655 | B103: 0.9616613051 | C103: 1.002323052 | D103: 0.9650400395 | E103: 104 | K103: 655 | L103: 54066.10584 | M103: 0 | N103: 0.149 | O103: 2.508 | P103: 1.903 | Q103: 104 | R103: 0
A104: 660 | B104: 0.819480057 | C104: 0.8481195052 | D104: 0.8228587915 | E104: 88 | K104: 660 | L104: 36857.09471 | M104: 0 | N104: 0.128 | O104: 2.804 | P104: 1.972 | Q104: 88 | R104: 0
A105: 665 | B105: 0.7288317941 | C105: 0.7517422887 | D105: 0.7322105286 | E105: 78 | K105: 665 | L105: 25813.5167 | M105: 0 | N105: 0.109 | O105: 3.121 | P105: 2.026 | Q105: 78 | R105: 0
A106: 670 | B106: 0.637098507 | C106: 0.6553650722 | D106: 0.6404772415 | E106: 68 | K106: 670 | L106: 17547.77119 | M106: 0 | N106: 0.091 | O106: 3.462 | P106: 2.068 | Q106: 68 | R106: 0
A107: 675 | B107: 0.5444771471 | C107: 0.5589878557 | D107: 0.5478558816 | E107: 58 | K107: 675 | L107: 11788.85014 | M107: 0 | N107: 0.076 | O107: 3.825 | P107: 2.105 | Q107: 58 | R107: 0
A108: 680 | B108: 0.4698519741 | C108: 0.4818860825 | D108: 0.4732307085 | E108: 50 | K108: 680 | L108: 7723.729405 | M108: 0 | N108: 0.063 | O108: 4.209 | P108: 2.139 | Q108: 50 | R108: 0
A109: 685 | B109: 0.3948348593 | C109: 0.4047843093 | D109: 0.3982135938 | E109: 42 | K109: 685 | L109: 4945.8969 | M109: 0 | N109: 0.052 | O109: 4.614 | P109: 2.176 | Q109: 42 | R109: 0
A110: 690 | B110: 0.31948637 | C110: 0.3276825361 | D110: 0.3228651044 | E110: 34 | K110: 690 | L110: 3184.344579 | M110: 0 | N110: 0.042 | O110: 5.037 | P110: 2.215 | Q110: 34 | R110: 0
A111: 695 | B111: 0.2249126767 | C111: 0.2313053196 | D111: 0.2282914112 | E111: 24 | K111: 695 | L111: 2100.312382 | M111: 0 | N111: 0.034 | O111: 5.479 | P111: 2.256 | Q111: 24 | R111: 0
A112: 700 | B112: 0.1869800636 | C112: 0.192754433 | D112: 0.1903587981 | E112: 20 | K112: 700 | L112: 1355.040247 | M112: 0 | N112: 0.027 | O112: 5.936 | P112: 2.296 | Q112: 20 | R112: 0
A113: 705 | B113: 0.1299854716 | C113: 0.1349281031 | D113: 0.133364206 | E113: 14 | K113: 705 | L113: 880.7761602 | M113: 0 | N113: 0.021 | O113: 6.405 | P113: 2.329 | Q113: 14 | R113: 0
A114: 710 | B114: 0.0919313977 | C114: 0.0963772165 | D114: 0.09531013215 | E114: 10 | K114: 710 | L114: 609.7681109 | M114: 0 | N114: 0.016 | O114: 6.885 | P114: 2.35 | Q114: 10 | R114: 0
A115: 715 | B115: 0.05383562259 | C115: 0.0578263299 | D115: 0.05721435703 | E115: 6 | K115: 715 | L115: 406.512074 | M115: 0 | N115: 0.013 | O115: 7.373 | P115: 2.355 | Q115: 6 | R115: 0
A116: 720 | B116: 0.01570160816 | C116: =E116*$E$15 -> 0.0192754433 | D116: =-LOG(($I$31+10^(-C116))/($I$31+1)) -> 0.01908034261 | E116: =HLOOKUP($B$5,L$42:S$139,ROW()-42+1) -> 2 | K116: 720 | L116: 271.0080493 | M116: 0 | N116: 0.01 | O116: 7.864 | P116: 2.337 | Q116: 2 | R116: 0
A117: =A116+5 -> 725 | B117: =D117+$B$50 -> -0.003378734447 | C117: 0 | D117: 0 | E117: 0 | K117: =K116+5 -> 725 | L117: 203.256037 | M117: 0 | N117: 0.007 | O117: 8.354 | P117: 2.294 | Q117: 0 | R117: 0
A118: 730 | B118: -0.003378734447 | C118: 0 | D118: 0 | E118: 0 | K118: 730 | L118: 0 | M118: 0 | N118: 0.005 | O118: 8.841 | P118: 2.226 | Q118: 0 | R118: 0
A119: 735 | B119: -0.003378734447 | C119: 0 | D119: 0 | E119: 0 | K119: 735 | L119: 0 | M119: 0 | N119: 0.004 | O119: 9.32 | P119: 2.133 | Q119: 0 | R119: 0
A120: 740 | B120: -0.003378734447 | C120: 0 | D120: 0 | E120: 0 | K120: 740 | L120: 0 | M120: 0 | N120: 0.003 | O120: 9.786 | P120: 2.018 | Q120: 0 | R120: 0
A121: 745 | B121: -0.003378734447 | C121: 0 | D121: 0 | E121: 0 | K121: 745 | L121: 0 | M121: 0 | N121: 0.002 | O121: 10.236 | P121: 1.885 | Q121: 0 | R121: 0
A122: 750 | B122: -0.003378734447 | C122: 0 | D122: 0 | E122: 0 | K122: 750 | L122: 0 | M122: 0 | N122: 0.001 | O122: 10.665 | P122: 1.74 | Q122: 0 | R122: 0
A123: 755 | B123: -0.003378734447 | C123: 0 | D123: 0 | E123: 0 | K123: 755 | L123: 0 | M123: 0 | N123: 0.001 | O123: 11.068 | P123: 1.588 | Q123: 0 | R123: 0
A124: 760 | B124: -0.003378734447 | C124: 0 | D124: 0 | E124: 0 | K124: 760 | L124: 0 | M124: 0 | N124: 0 | O124: 11.442 | P124: 1.433 | Q124: 0 | R124: 0
A125: 765 | B125: -0.003378734447 | C125: 0 | D125: 0 | E125: 0 | K125: 765 | L125: 0 | M125: 0 | N125: 0 | O125: 11.782 | P125: 1.28 | Q125: 0 | R125: 0
A126: 770 | B126: -0.003378734447 | C126: 0 | D126: 0 | E126: 0 | K126: 770 | L126: 0 | M126: 0 | N126: 0 | O126: 12.085 | P126: 1.134 | Q126: 0 | R126: 0
A127: 775 | B127: -0.003378734447 | C127: 0 | D127: 0 | E127: 0 | K127: 775 | L127: 0 | M127: 0 | N127: 0 | O127: 12.348 | P127: 0.995 | Q127: 0 | R127: 0
A128: 780 | B128: -0.003378734447 | C128: 0 | D128: 0 | E128: 0 | K128: 780 | L128: 0 | M128: 0 | N128: 0 | O128: 12.569 | P128: 0.866 | Q128: 0 | R128: 0
A129: 785 | B129: -0.003378734447 | C129: 0 | D129: 0 | E129: 0 | K129: 785 | L129: 0 | M129: 0 | N129: 0 | O129: 12.745 | P129: 0.749 | Q129: 0 | R129: 0
A130: 790 | B130: -0.003378734447 | C130: 0 | D130: 0 | E130: 0 | K130: 790 | L130: 0 | M130: 0 | N130: 0 | O130: 12.878 | P130: 0.642 | Q130: 0 | R130: 0
A131: 795 | B131: -0.003378734447 | C131: 0 | D131: 0 | E131: 0 | K131: 795 | L131: 0 | M131: 0 | N131: 0 | O131: 12.967 | P131: 0.547 | Q131: 0 | R131: 0
A132: 800 | B132: -0.003378734447 | C132: 0 | D132: 0 | E132: 0 | K132: 800 | L132: 0 | M132: 0 | N132: 0 | O132: 13.018 | P132: 0.462 | Q132: 0 | R132: 0
A133: 805 | B133: -0.003378734447 | C133: 0 | D133: 0 | E133: 0 | K133: 805 | L133: 0 | M133: 0 | N133: 0 | O133: 13.035 | P133: 0.388 | Q133: 0 | R133: 0
A134: 810 | B134: -0.003378734447 | C134: 0 | D134: 0 | E134: 0 | K134: 810 | L134: 0 | M134: 0 | N134: 0 | O134: 13.026 | P134: 0.323 | Q134: 0 | R134: 0
A135: 815 | B135: -0.003378734447 | C135: 0 | D135: 0 | E135: 0 | K135: 815 | L135: 0 | M135: 0 | N135: 0 | O135: 12.998 | P135: 0.266 | Q135: 0 | R135: 0
A136: 820 | B136: -0.003378734447 | C136: 0 | D136: 0 | E136: 0 | K136: 820 | L136: 0 | M136: 0 | N136: 0 | O136: 12.955 | P136: 0.218 | Q136: 0 | R136: 0
A137: 825 | B137: -0.003378734447 | C137: 0 | D137: 0 | E137: 0 | K137: 825 | L137: 0 | M137: 0 | N137: 0 | O137: 12.895 | P137: 0.177 | Q137: 0 | R137: 0
A138: 830 | B138: -0.003378734447 | C138: 0 | D138: 0 | E138: 0 | K138: 830 | L138: 0 | M138: 0 | N138: 0 | O138: 12.811 | P138: 0.142 | Q138: 0 | R138: 0
A139: 835 | B139: -0.003378734447 | C139: 0 | D139: 0 | E139: 0 | K139: 835 | L139: 0 | M139: 0 | N139: 0 | O139: 12.685 | P139: 0.113 | Q139: 0 | R139: 0
